fUST/lending_fUST_20240907
["ID","MTS","AMOUNT","RATE_DAILY","PERIOD"]
[337450840,1725674970143,-500.0,0.00054794,120]
[337450841,1725674970166,-500.0,0.00054794,120]
[337450842,1725674970188,-500.0,0.00054794,120]
[337450843,1725674970210,-388.16746711,0.00054794,120]
[337450844,1725674970232,-500.0,0.00054794,120]
[337450845,1725674970255,-500.0,0.00054794,120]
[337450846,1725674970355,-276.32573815,0.00054794,120]
[337450847,1725674970383,-500.0,0.00054794,120]
[337450848,1725674970407,-500.0,0.00054794,120]
[337450849,1725674970429,-500.0,0.00054794,120]
[337450850,1725674970453,-500.0,0.00054794,120]
[337450851,1725674970475,-509.60630084,0.00054794,120]
[337450852,1725674970497,-500.0,0.00054794,120]
[337450853,1725674970518,-501.76259105,0.00054794,120]
[337450854,1725674970540,-500.0,0.00054794,120]
[337450855,1725674970561,-500.0,0.00054794,120]
[337450856,1725674970582,-500.0,0.00054794,120]
[337450857,1725674970603,-500.0,0.00054794,120]
[337450858,1725674970625,-500.0,0.00054794,120]
[337450859,1725674970653,-500.0,0.00054794,120]
[337450860,1725674970675,-500.0,0.00054794,120]
[337450861,1725674970697,-500.0,0.00054794,120]
[337450862,1725674970719,-562.26311327,0.00054794,120]
[337450863,1725674970741,-500.0,0.00054794,120]
[337450864,1725674970762,-500.0,0.00054794,120]
[337450865,1725674970784,-500.0,0.00054794,120]
[337450866,1725674970806,-500.0,0.00054794,120]
[337450867,1725674970827,-500.0,0.00054794,120]
[337450868,1725674970849,-446.30932561,0.00054794,120]
[337450869,1725674970870,-500.0,0.00054794,120]
[337450870,1725674970892,-500.0,0.00054794,120]
[337450871,1725674970914,-500.0,0.00054794,120]
[337450872,1725674970935,-500.0,0.00054794,120]
[337450873,1725674970955,-500.0,0.00054794,120]
[337450874,1725674970976,-500.0,0.00054794,120]
[337450875,1725674970999,-500.0,0.00054794,120]
[337450876,1725674971019,-500.0,0.00054794,120]
[337450877,1725674971041,-518.19723269,0.00054794,120]
[337450878,1725674971061,-500.0,0.00054794,120]
[337450879,1725674971081,-262.02702496,0.00054794,120]
[337450880,1725674971102,-500.0,0.00054794,120]
[337450881,1725674971124,-500.0,0.00054794,120]
[337450882,1725674971146,-532.72144095,0.00054794,120]
[337450883,1725674971167,-201.07624338,0.00054794,120]
[337450884,1725674971190,-500.0,0.00054794,120]
[337450885,1725674971211,-500.0,0.00054794,120]
[337450886,1725674971232,-514.89180013,0.00054794,120]
[337450887,1725674971255,-632.41858761,0.00054794,120]
[337450888,1725674971277,-537.67147912,0.00054794,120]
[337450889,1725674971298,-500.0,0.00054794,120]
[337450890,1725674971319,-500.0,0.00054794,120]
[337450891,1725674971339,-151.0,0.00054794,120]
[337450892,1725674971360,-518.92122629,0.00054794,120]
[337450893,1725674971382,-151.0,0.00054794,120]
[337450894,1725674971406,-423.39301594,0.00054794,120]
[337450895,1725674971427,-500.0,0.00054794,120]
[337450896,1725674971448,-512.9575093,0.00054794,120]
[337450897,1725674971468,-500.0,0.00054794,120]
[337450898,1725674971489,-500.0,0.00054794,120]
[337450899,1725674971509,-514.58521343,0.00054794,120]
[337450900,1725674971530,-517.18203026,0.00054794,120]
[337450901,1725674971551,-409.357503,0.00054794,120]
[337450902,1725674971572,-409.357503,0.00054794,120]
[337450903,1725674971594,-627.4306351,0.00054794,120]
[337450904,1725674971614,-409.357503,0.00054794,120]
[337450905,1725674971636,-409.357503,0.00054794,120]
[337450906,1725674971658,-151.0,0.00054794,120]
[337450907,1725674971678,-151.0,0.00054794,120]
[337450908,1725674971699,-500.0,0.00054794,120]
[337450909,1725674971720,-507.28551013,0.00054794,120]
[337450910,1725674971741,-506.85872551,0.00054794,120]
[337450911,1725674971762,-171.772712,0.00054794,120]
[337450912,1725674971783,-913.82,0.00054794,120]
[337450913,1725674971804,-913.82,0.00054794,120]
[337450914,1725674971825,-500.0,0.00054794,120]
[337450915,1725674971847,-913.82,0.00054794,120]
[337450916,1725674971868,-500.0,0.00054794,120]
[337450917,1725674971890,-1200.997584,0.00054794,120]
[337450918,1725674971911,-913.82,0.00054794,120]
[337450919,1725674971934,-521.74687109,0.00054794,120]
[337450920,1725674971956,-913.82,0.00054794,120]
[337450921,1725674971976,-1200.997584,0.00054794,120]
[337450922,1725674971998,-913.82,0.00054794,120]
[337450923,1725674972020,-500.0,0.00054794,120]
[337450924,1725674972041,-500.0,0.00054794,120]
[337450925,1725674972062,-913.82,0.00054794,120]
[337450926,1725674972082,-913.82,0.00054794,120]
[337450927,1725674972103,-500.0,0.00054794,120]
[337450928,1725674972123,-500.0,0.00054794,120]
[337450929,1725674972144,-500.0,0.00054794,120]
[337450930,1725674972164,-500.0,0.00054794,120]
[337450931,1725674972185,-1200.997584,0.00054794,120]
[337450932,1725674972206,-1200.997584,0.00054794,120]
[337450933,1725674972226,-500.0,0.00054794,120]
[337450934,1725674972247,-500.0,0.00054794,120]
[337450935,1725674972267,-516.25022025,0.00054794,120]
[337450936,1725674972289,-500.0,0.00054794,21]
[337450937,1725674972309,-500.0,0.00054794,21]
[337450938,1725674972331,-619.61927932,0.00054794,21]
[337450939,1725674972353,-254.22575531,0.00054794,120]
[337450940,1725674972449,-500.0,0.00054794,120]
[337450941,1725674972473,-500.0,0.00054794,120]
[337450942,1725674972495,-500.0,0.00054794,120]
[337450943,1725674972516,-304.27882983,0.00054794,120]
[337450944,1725674972537,-500.0,0.00054794,120]
[337450945,1725674972558,-500.0,0.00054794,120]
[337450946,1725674972579,-500.0,0.00054794,120]
[337450947,1725674972600,-500.0,0.00054794,120]
[337450948,1725674972621,-573.3963246,0.00054794,120]
[337450949,1725674972645,-500.0,0.00054794,120]
[337450950,1725674972666,-512.79030539,0.00054794,120]
[337450951,1725674972687,-1394.431659,0.00054794,120]
[337450952,1725674972707,-1394.431659,0.00054794,120]
[337450953,1725674972729,-500.0,0.00054794,120]
[337450954,1725674972750,-823.47,0.00054794,120]
[337450955,1725674972771,-511.09165764,0.00054794,120]
[337450956,1725674972793,-823.47,0.00054794,120]
[337450957,1725674972814,-823.47,0.00054794,120]
[337450958,1725674972835,-823.47,0.00054794,120]
[337450959,1725674972857,-1394.431659,0.00054794,120]
[337450960,1725674972878,-823.47,0.00054794,120]
[337450961,1725674972899,-1394.431659,0.00054794,120]
[337450962,1725674972922,-823.47,0.00054794,120]
[337450963,1725674972944,-500.0,0.00054794,120]
[337450964,1725674972966,-176.60023078,0.00054794,120]
[337450965,1725674972988,-1007.88169348,0.00054794,120]
[337450966,1725674973009,-500.0,0.00054794,120]
[337450967,1725674973031,-524.86518303,0.00054794,120]
[337450968,1725674973053,-500.0,0.00054794,120]
[337450969,1725674973075,-500.0,0.00054794,120]
[337450970,1725674973098,-500.0,0.00054794,120]
[337450971,1725674973120,-500.0,0.00054794,120]
[337450972,1725674973141,-500.0,0.00054794,120]
[337450973,1725674973162,-500.0,0.00054794,120]
[337450974,1725674973184,-500.0,0.00054794,120]
[337450975,1725674973205,-500.0,0.00054794,120]
[337450976,1725674973226,-507.32731577,0.00054794,120]
[337450977,1725674973247,-500.0,0.00054794,120]
[337450978,1725674973268,-500.0,0.00054794,120]
[337450979,1725674973289,-542.72425638,0.00054794,120]
[337450980,1725674973310,-500.0,0.00054794,120]
[337450981,1725674973331,-500.0,0.00054794,120]
[337450982,1725674973353,-620.60498401,0.00054794,120]
[337450983,1725674973373,-506.86593732,0.00054794,120]
[337450984,1725674973395,-504.90146678,0.00054794,120]
[337450985,1725674973418,-357.73670456,0.00054794,120]
[337450986,1725674973440,-3035.27,0.00054794,120]
[337450987,1725674973463,-3035.27,0.00054794,120]
[337450988,1725674973484,-501.01889679,0.00054794,120]
[337450989,1725674973506,-3035.27,0.00054794,120]
[337450990,1725674973528,-3035.27,0.00054794,120]
[337450991,1725674973550,-3035.27,0.00054794,120]
[337450992,1725674973571,-3035.27,0.00054794,120]
[337450993,1725674973592,-502.18117332,0.00054794,120]
[337450994,1725674973613,-500.0,0.00054794,120]
[337450995,1725674973637,-515.16966588,0.00054794,120]
[337450996,1725674973663,-500.0,0.00054794,120]
[337450997,1725674973684,-500.0,0.00054794,120]
[337450998,1725674973705,-196.10540321,0.00054794,120]
[337450999,1725674973730,-506.41009515,0.00054794,120]
[337451000,1725674973751,-2859.717668,0.00054794,90]
[337451001,1725674973772,-2859.717668,0.00054794,90]
[337451002,1725674973794,-151.0,0.00054794,120]
[337451003,1725674973815,-151.0,0.00054794,120]
[337451004,1725674973836,-151.0,0.00054794,120]
[337451005,1725674973858,-473.12917506,0.00054794,120]
[337451006,1725674973879,-2859.717668,0.00054794,90]
[337451007,1725674973900,-2859.717668,0.00054794,90]
[337451008,1725674973922,-500.0,0.00054794,120]
[337451009,1725674973943,-256.832796,0.00054794,120]
[337451010,1725674973964,-556.15789182,0.00054794,120]
[337451011,1725674973986,-256.832796,0.00054794,120]
[337451012,1725674974008,-500.0,0.00054794,120]
[337451013,1725674974030,-500.0,0.00054794,120]
[337451014,1725674974052,-500.0,0.00054794,120]
[337451015,1725674974074,-500.0,0.00054794,120]
[337451016,1725674974095,-199.24439003,0.00054794,120]
[337451017,1725674974116,-256.832796,0.00054794,120]
[337451018,1725674974139,-500.0,0.00054794,120]
[337451019,1725674974162,-500.0,0.00054794,120]
[337451020,1725674974183,-256.832796,0.00054794,120]
[337451021,1725674974205,-500.0,0.00054794,120]
[337451022,1725674974232,-500.0,0.00054794,120]
[337451023,1725674974255,-262.55898435,0.00054794,120]
[337451024,1725674974278,-500.0,0.00054794,120]
[337451025,1725674974300,-500.0,0.00054794,120]
[337451026,1725674974322,-542.82786934,0.00054794,120]
[337451027,1725674974344,-500.0,0.00054794,120]
[337451028,1725674974373,-316.38198528,0.00054794,120]
[337451029,1725674974397,-500.0,0.00054794,120]
[337451030,1725674974419,-500.0,0.00054794,120]
[337451031,1725674974529,-500.0,0.00054794,120]
[337451032,1725674974551,-500.0,0.00054794,120]
[337451033,1725674974575,-500.0,0.00054794,120]
[337451034,1725674974595,-500.0,0.00054794,120]
[337451035,1725674974617,-510.40340556,0.00054794,120]
[337451036,1725674974641,-500.0,0.00054794,120]
[337451037,1725674974663,-500.0,0.00054794,120]
[337451038,1725674974684,-500.0,0.00054794,120]
[337451039,1725674974706,-507.24902116,0.00054794,120]
[337451040,1725674974729,-500.0,0.00054794,120]
[337451041,1725674974750,-500.0,0.00054794,120]
[337451042,1725674974771,-506.76442207,0.00054794,120]
[337451043,1725674974792,-500.0,0.00054794,120]
[337451044,1725674974813,-500.0,0.00054794,120]
[337451045,1725674974832,-500.0,0.00054794,120]
[337451046,1725674974853,-312.42409953,0.00054794,120]
[337451047,1725674974875,-500.0,0.00054794,120]
[337451048,1725674974897,-500.0,0.00054794,120]
[337451049,1725674974920,-500.0,0.00054794,120]
[337451050,1725674974942,-500.0,0.00054794,120]
[337451051,1725674974963,-500.0,0.00054794,120]
[337451052,1725674974984,-500.0,0.00054794,120]
[337451053,1725674975007,-500.0,0.00054794,120]
[337451054,1725674975029,-500.0,0.00054794,120]
[337451055,1725674975050,-500.0,0.00054794,120]
[337451056,1725674975071,-508.88370939,0.00054794,120]
[337451057,1725674975094,-500.0,0.00054794,120]
[337451058,1725674975116,-500.0,0.00054794,120]
[337451059,1725674975138,-500.0,0.00054794,120]
[337451060,1725674975160,-500.0,0.00054794,120]
[337451061,1725674975181,-500.0,0.00054794,120]
[337451062,1725674975201,-331.04904185,0.00054794,120]
[337451063,1725674975222,-500.0,0.00054794,120]
[337451064,1725674975243,-500.0,0.00054794,120]
[337451065,1725674975264,-507.84692766,0.00054794,120]
[337451066,1725674975284,-500.0,0.00054794,120]
[337451067,1725674975305,-541.29894529,0.00054794,120]
[337451068,1725674975325,-500.0,0.00054794,120]
[337451069,1725674975345,-640.14441069,0.00054794,120]
[337451070,1725674975366,-500.0,0.00054794,120]
[337451071,1725674975387,-505.87376747,0.00054794,120]
[337451072,1725674975411,-500.0,0.00054794,120]
[337451073,1725674975431,-504.40641391,0.00054794,120]
[337451074,1725674975452,-500.0,0.00054794,120]
[337451075,1725674975475,-500.0,0.00054794,120]
[337451076,1725674975496,-500.0,0.00054794,120]
[337451077,1725674975517,-193.505917,0.00054794,120]
[337451078,1725674975538,-500.0,0.00054794,120]
[337451079,1725674975559,-534.45215773,0.00054794,120]
[337451080,1725674975581,-210.152838,0.00054794,120]
[337451081,1725674975603,-500.0,0.00054794,120]
[337451082,1725674975624,-500.0,0.00054794,120]
[337451083,1725674975648,-210.152838,0.00054794,120]
[337451084,1725674975670,-500.0,0.00054794,120]
[337451085,1725674975692,-208.71648183,0.00054794,120]
[337451086,1725674975717,-500.0,0.00054794,120]
[337451087,1725674975741,-500.0,0.00054794,120]
[337451088,1725674975763,-297.53247817,0.00054794,120]
[337451089,1725674975785,-500.0,0.00054794,120]
[337451090,1725674975807,-500.0,0.00054794,120]
[337451091,1725674975829,-502.71939637,0.00054794,120]
[337451092,1725674975851,-500.0,0.00054794,120]
[337451093,1725674975872,-506.26256061,0.00054794,120]
[337451094,1725674975894,-210.152838,0.00054794,120]
[337451095,1725674975916,-583.43,0.00054794,120]
[337451096,1725674975944,-210.152838,0.00054794,120]
[337451097,1725674975965,-583.43,0.00054794,120]
[337451098,1725674975988,-500.0,0.00054794,120]
[337451099,1725674976010,-583.43,0.00054794,120]
[337451100,1725674976033,-510.62694228,0.00054794,120]
[337451101,1725674976060,-583.43,0.00054794,120]
[337451102,1725674976082,-500.0,0.00054794,120]
[337451103,1725674976104,-583.43,0.00054794,120]
[337451104,1725674976126,-515.63356778,0.00054794,120]
[337451105,1725674976148,-583.43,0.00054794,120]
[337451106,1725674976169,-500.0,0.00054794,120]
[337451107,1725674976191,-503.18262667,0.00054794,120]
[337451108,1725674976213,-500.0,0.00054794,120]
[337451109,1725674976234,-500.0,0.00054794,120]
[337451110,1725674976254,-500.0,0.00054794,120]
[337451111,1725674976276,-500.0,0.00054794,120]
[337451112,1725674976297,-500.0,0.00054794,120]
[337451113,1725674976319,-500.0,0.00054794,120]
[337451114,1725674976342,-914.26,0.00054794,120]
[337451115,1725674976364,-914.26,0.00054794,120]
[337451116,1725674976486,-914.26,0.00054794,120]
[337451117,1725674976510,-914.26,0.00054794,120]
[337451118,1725674976532,-914.26,0.00054794,120]
[337451119,1725674976555,-914.26,0.00054794,120]
[337451120,1725674976577,-914.26,0.00054794,120]
[337451121,1725674976598,-914.26,0.00054794,120]
[337451122,1725674976621,-500.0,0.00054794,120]
[337451123,1725674976648,-500.0,0.00054794,120]
[337451124,1725674976670,-553.15693409,0.00054794,120]
[337451125,1725674976693,-500.0,0.00054794,120]
[337451126,1725674976715,-500.0,0.00054794,120]
[337451127,1725674976737,-254.91838144,0.00054794,120]
[337451128,1725674976758,-500.0,0.00054794,120]
[337451129,1725674976779,-500.0,0.00054794,120]
[337451130,1725674976801,-500.0,0.00054794,120]
[337451131,1725674976822,-500.0,0.00054794,120]
[337451132,1725674976843,-500.0,0.00054794,120]
[337451133,1725674976863,-500.0,0.00054794,120]
[337451134,1725674976884,-500.0,0.00054794,120]
[337451135,1725674976906,-17.94954808,0.00054794,120]
[337451136,1725674977030,-482.05045192,0.00054794,120]
[337451137,1725674977051,-500.0,0.00054794,120]
[337451138,1725674977071,-514.97814121,0.00054794,120]
[337451139,1725674977091,-500.0,0.00054794,120]
[337451140,1725674977113,-368.51081878,0.00054794,120]
[337451141,1725674977135,-151.0,0.00054794,120]
[337451142,1725674977156,-500.0,0.00054794,120]
[337451143,1725674977177,-151.0,0.00054794,120]
[337451144,1725674977197,-510.03580458,0.00054794,120]
[337451145,1725674977217,-151.0,0.00054794,120]
[337451146,1725674977238,-500.0,0.00054794,120]
[337451147,1725674977258,-506.64361618,0.00054794,120]
[337451148,1725674977281,-151.0,0.00054794,120]
[337451149,1725674977305,-151.0,0.00054794,120]
[337451150,1725674977325,-151.0,0.00054794,120]
[337451151,1725674977346,-500.0,0.00054794,120]
[337451152,1725674977366,-500.0,0.00054794,120]
[337451153,1725674977390,-500.0,0.00054794,120]
[337451154,1725674977411,-232.08695616,0.00054794,120]
[337451155,1725674977432,-500.0,0.00054794,120]
[337451156,1725674977453,-505.95257179,0.00054794,120]
[337451157,1725674977474,-483.92231833,0.00054794,120]
[337451158,1725674977494,-151.0,0.00054794,120]
[337451159,1725674977514,-151.0,0.00054794,120]
[337451160,1725674977534,-151.0,0.00054794,120]
[337451161,1725674977554,-503.65442195,0.00054794,120]
[337451162,1725674977574,-500.0,0.00054794,120]
[337451163,1725674977594,-815.3846,0.00054794,120]
[337451164,1725674977614,-151.0,0.00054794,120]
[337451165,1725674977636,-506.31072578,0.00054794,120]
[337451166,1725674977659,-500.0,0.00054794,120]
[337451167,1725674977681,-815.3846,0.00054794,120]
[337451168,1725674977701,-509.29890269,0.00054794,120]
[337451169,1725674977723,-189.224264,0.00054794,120]
[337451170,1725674977744,-152.111515,0.00054794,120]
[337451171,1725674977765,-500.0,0.00054794,120]
[337451172,1725674977786,-500.0,0.00054794,120]
[337451173,1725674977807,-500.0,0.00054794,120]
[337451174,1725674977829,-500.0,0.00054794,120]
[337451175,1725674977849,-500.0,0.00054794,120]
[337451176,1725674977870,-280.63214399,0.00054794,120]
[337451177,1725674977891,-511.7547502,0.00054794,120]
[337451178,1725674977912,-510.36758545,0.00054794,120]
[337451179,1725674977932,-815.3846,0.00054794,120]
[337451180,1725674977954,-500.0,0.00054794,120]
[337451181,1725674977976,-500.0,0.00054794,120]
[337451182,1725674977997,-500.0,0.00054794,120]
[337451183,1725674978019,-500.0,0.00054794,120]
[337451184,1725674978040,-512.53106057,0.00054794,120]
[337451185,1725674978060,-815.3846,0.00054794,120]
[337451186,1725674978082,-500.0,0.00054794,120]
[337451187,1725674978104,-500.0,0.00054794,120]
[337451188,1725674978125,-500.0,0.00054794,120]
[337451189,1725674978145,-506.06449158,0.00054794,120]
[337451190,1725674978242,-342.03,0.000548,30]
[337451191,1725674978267,-962.86,0.000548,30]
[337451192,1725674978288,-500.0,0.00055,120]
[337451193,1725674978308,-2093.7400979,0.00057088,2]
[337451194,1725674978328,-500.0,0.0006,120]
[337451195,1725674978348,-150.0,0.00060218,2]
[337451196,1725674978368,-313.77396429,0.00060738,2]
[337451197,1725674978388,-151.56384183,0.00060767,2]
[337451198,1725674978410,-409.357503,0.00061916,120]
[337451199,1725674978432,-409.357503,0.00061916,120]
[337451200,1725674978453,-151.0,0.00061916,120]
[337451201,1725674978474,-1200.997584,0.00061916,120]
[337451202,1725674978496,-1200.997584,0.00061916,120]
[337451203,1725674978516,-1394.431659,0.00061916,120]
[337451204,1725674978538,-1394.431659,0.00061916,120]
[337451205,1725674978559,-2859.717668,0.00061916,90]
[337451206,1725674978580,-2859.717668,0.00061916,90]
[337451207,1725674978601,-256.832796,0.00061916,120]
[337451208,1725674978622,-256.832796,0.00061916,120]
[337451209,1725674978646,-210.152838,0.00061916,120]
[337451210,1725674978668,-210.152838,0.00061916,120]
[337451211,1725674978690,-815.3846,0.00061916,120]
[337451212,1725674978712,-815.3846,0.00061916,120]
[337451213,1725674978736,-500.0,0.00065,120]
[337451214,1725674978756,-152.0,0.00065753,120]
[337451215,1725674978777,-1090.10638481,0.00066,120]
[337451216,1725674978799,-2093.7400979,0.00067979,2]
[337451217,1725674978820,-2500.01,0.00068493,120]
[337451218,1725674978840,-201.99338042,0.00068493,120]
[337451219,1725674978862,-309.587907,0.00068493,120]
[337451220,1725674978884,-2500.01,0.00069041,120]
[337451221,1725674978908,-8778.30097207,0.00069579,10]
[337451222,1725674978930,-5588.88357661,0.00069579,10]
[337451223,1725674978952,-2500.01,0.00069589,120]
[337451224,1725674978973,-214.739156,0.00069589,120]
[337451225,1725674978994,-961.894585,0.00069589,120]
[337451226,1725674979014,-214.739156,0.00069589,120]
[337451227,1725674979036,-961.894585,0.00069589,120]
[337451228,1725674979057,-151.0,0.00069589,120]
[337451229,1725674979080,-500.0,0.0007,120]
[337451230,1725674979100,-2500.01,0.00070136,120]
[337451231,1725674979123,-155.775685,0.000703,20]
[337451232,1725674979145,-2500.01,0.00070684,120]
[337451233,1725674979166,-2500.01,0.00071232,120]
[337451234,1725674979187,-2500.01,0.0007178,120]
[337451235,1725674979209,-309.587907,0.00072098,120]
[337451236,1725674979230,-2500.01,0.00072328,120]
[337451237,1725674979249,-17999.99999999,0.00072342,120]
[337451238,1725674979270,-738.148,0.00072653,120]
[337451239,1725674979291,-2500.01,0.00072876,120]
[337451240,1725674979312,-2500.01,0.00073424,120]
[337451241,1725674979333,-151.0,0.00073962,120]
[337451242,1725674979353,-151.0,0.00073962,120]
[337451243,1725674979373,-151.0,0.00073962,120]
[337451244,1725674979394,-151.0,0.00073962,120]
[337451245,1725674979416,-2500.01,0.00073972,120]
[337451246,1725674979436,-2000.0,0.00074,30]
[337451247,1725674979456,-151.0,0.00074,30]
[337451248,1725674979475,-151.0,0.00074,120]
[337451249,1725674979496,-151.0,0.00074,120]
[337451250,1725674979516,-151.0,0.00074,120]
[337451251,1725674979537,-315.839881,0.00074,120]
[337451252,1725674979557,-315.839881,0.00074,120]
[337451253,1725674979577,-151.0,0.00074,120]
[337451254,1725674979598,-398.362295,0.00074,120]
[337451255,1725674979618,-151.0,0.00074,120]
[337451256,1725674979641,-398.362295,0.00074,120]
[337451257,1725674979662,-151.0,0.00074,120]
[337451258,1725674979683,-151.0,0.00074,120]
[337451259,1725674979703,-611.312361,0.00074,120]
[337451260,1725674979726,-611.312361,0.00074,120]
[337451261,1725674979747,-2500.01,0.0007452,120]
[337451262,1725674979768,-150.112233,0.000746,21]
[337451263,1725674979788,-342.03,0.000746,30]
[337451264,1725674979810,-885.47436002,0.000746,30]
[337451265,1725674980067,-7970.41,0.00035377,3]
[337451266,1725674980097,-77.38563998,0.000746,30]
[337451267,1725674980120,-5057.27506602,0.00074879,11]
[337451268,1725674980569,500.0,0.00054794,120]
[337451269,1725674980869,258.20035196,0.00054794,120]
[337451270,1725674981003,500.0,0.00054794,120]
[337451271,1725674981298,520.91667524,0.00054794,120]
[337451272,1725674983823,500.0,0.00054794,120]
[337451273,1725674984112,528.43171828,0.00054794,120]
[337451274,1725674986083,500.0,0.00054794,120]
[337451275,1725674986295,505.97489785,0.00054794,120]
[337451276,1725674986327,504.28916025,0.00054794,120]
[337451277,1725674988328,500.0,0.00054794,120]
[337451278,1725674988595,515.83521959,0.00054794,120]
[337451279,1725674992583,500.0,0.00054794,120]
[337451280,1725674992856,529.43154763,0.00054794,120]
[337451281,1725674993377,500.0,0.00054783,120]
[337451282,1725674993667,500.0,0.00054783,120]
[337451283,1725674993932,493.80282731,0.00054783,120]
[337451284,1725675004175,504.74386595,0.00054794,120]
[337451285,1725675006233,500.0,0.00054794,120]
[337451286,1725675006512,510.64228672,0.00054794,120]
[337451287,1725675012510,2949.33,0.00054794,120]
[337451288,1725675012825,2949.33,0.00054794,120]
[337451289,1725675013082,198.92575644,0.00054794,120]
[337451294,1725675038430,-151.0,0.00054774,120]
[337451297,1725675038447,-151.0,0.00054774,120]
[337451299,1725675038461,-2750.40424356,0.00054794,120]
[337451302,1725675038475,-2949.33,0.00054794,120]
[337451304,1725675038488,-2153.60533645,0.00054794,120]
[337451340,1725675038867,-795.72466355,0.00054794,120]
[337451341,1725675038879,-484.63317827,0.00054794,120]
[337451387,1725675040506,-2464.69682173,0.00054794,120]
[337451389,1725675040515,-604.23649876,0.00054794,120]
[337451391,1725675040525,-500.0,0.00054794,120]
[337451393,1725675040535,-500.0,0.00054794,120]
[337451395,1725675040544,-507.50787809,0.00054794,120]
[337451397,1725675040554,-506.26111317,0.00054794,120]
[337451399,1725675040563,-65.16967802,0.00054794,120]
[337451418,1725675040748,-349.26043022,0.00054794,120]
[337451678,1725675043402,-93.0115285,0.00054794,120]
[337451680,1725675043411,-151.0,0.00054794,120]
[337451682,1725675043422,-151.0,0.00054794,120]
[337451684,1725675043432,-151.0,0.00054794,120]
[337451686,1725675043441,-151.0,0.00054794,120]
[337451688,1725675043450,-500.0,0.00054794,120]
[337451690,1725675043459,-151.0,0.00054794,120]
[337451692,1725675043468,-511.35150735,0.00054794,120]
[337451694,1725675043478,-151.0,0.00054794,120]
[337451696,1725675043487,-151.0,0.00054794,120]
[337451698,1725675043497,-184.835885,0.00054794,120]
[337451700,1725675043506,-516.2961022,0.00054794,120]
[337451702,1725675043515,-151.0,0.00069579,120]
[337451704,1725675043524,-453.37684944,0.00074779,28]
[337451706,1725675043534,-4428.01,0.00074845,3]
[337451708,1725675043543,-9047.39790066,0.00074855,120]
[337451723,1725675043678,-44563.463604,0.00074855,120]
[337451726,1725675043690,-44535.93017994,0.00074855,120]
[337451777,1725675044150,-1329.92644056,0.00074855,120]
[337451779,1725675044164,-29021.201928,0.00074855,120]
[337452043,1725675046812,-151.0,0.00054774,120]
[337452045,1725675046821,-151.0,0.00054774,120]
[337452047,1725675046831,-151.0,0.00054794,120]
[337452049,1725675046840,-151.0,0.00054794,120]
[337452051,1725675046850,-151.0,0.00054794,120]
[337452053,1725675046860,-151.76263,0.00054794,120]
[337452055,1725675046869,-151.0,0.00054794,120]
[337452057,1725675046878,-507.84070678,0.00054794,120]
[337452059,1725675046888,-151.0,0.00054794,120]
[337452060,1725675046898,-609.22,0.00054794,120]
[337452062,1725675046907,-151.0,0.00054794,120]
[337452064,1725675046917,-11179.57406805,0.00074855,120]
[337458293,1725675208647,10000.0,0.0005,2]
[337458294,1725675271687,170.184046,0.00036085,2]
[337458295,1725675297713,9829.815954,0.0004,2]